[Event "Titled Tuesday Blitz May 2 Late 2023"]
[White "Leenhouts, Koen"]
[Black "Ardila, Oscar Humberto"]
[WhiteFideId "1008439"]
[BlackFideId "4404742"]
[WhiteElo "2409"]
[BlackElo "1918"]
[Result "1/2-1/2"]
[Round "06"]
[TimeControl "180+2"]
[Date "2023.05.02"]
[WhiteClock "0:00:02"]
[BlackClock "0:00:03"]

1. e4 {[%clk 0:02:45]}  e5 {[%clk 0:02:58]} 2. Nf3 {[%clk 0:02:45]}  Nf6 {[%clk 0:02:58]} 3. Nxe5 {[%clk 0:02:41]}  d6 {[%clk 0:02:58]} 4. Nd3 {[%clk 0:02:41]}  Nxe4 {[%clk 0:02:58]} 5. Qe2 {[%clk 0:02:41]}  Qe7 {[%clk 0:02:58]} 6. Nf4 {[%clk 0:02:41]}  Nf6 {[%clk 0:02:58]} 7. Nc3 {[%clk 0:02:35]}  Qxe2+ {[%clk 0:02:57]} 8. Bxe2 {[%clk 0:02:33]}  c6 {[%clk 0:02:55]} 9. d4 {[%clk 0:02:32]}  Bf5 {[%clk 0:02:51]} 10. Bd3 {[%clk 0:02:30]}  Bxd3 {[%clk 0:02:51]} 11. Nxd3 {[%clk 0:02:31]}  Nbd7 {[%clk 0:02:43]} 12. O-O {[%clk 0:02:32]}  O-O-O {[%clk 0:02:42]} 13. Bf4 {[%clk 0:02:30]}  Nb6 {[%clk 0:02:35]} 14. Rfe1 {[%clk 0:02:25]}  h6 {[%clk 0:02:13]} 15. h3 {[%clk 0:02:23]}  Nbd5 {[%clk 0:02:11]} 16. Nxd5 {[%clk 0:02:20]}  Nxd5 {[%clk 0:02:11]} 17. Bg3 {[%clk 0:02:20]}  g5 {[%clk 0:02:02]} 18. c4 {[%clk 0:02:17]}  Nb6 {[%clk 0:02:01]} 19. b3 {[%clk 0:01:54]}  Bg7 {[%clk 0:01:57]} 20. Rad1 {[%clk 0:01:36]}  Bxd4 {[%clk 0:01:50]} 21. Re7 {[%clk 0:01:35]}  f5 {[%clk 0:01:45]} 22. c5 {[%clk 0:01:02]}  Nd5 {[%clk 0:01:37]} 23. cxd6 {[%clk 0:00:37]}  Nxe7 {[%clk 0:01:33]} 24. dxe7 {[%clk 0:00:38]}  Rd7 {[%clk 0:01:26]} 25. Rc1 {[%clk 0:00:31]}  f4 {[%clk 0:01:21]} 26. Bh2 {[%clk 0:00:30]}  Rxe7 {[%clk 0:01:15]} 27. g3 {[%clk 0:00:29]}  fxg3 {[%clk 0:00:58]} 28. Bxg3 {[%clk 0:00:30]}  Rd8 {[%clk 0:00:56]} 29. Nb4 {[%clk 0:00:27]}  c5 {[%clk 0:00:45]} 30. a4 {[%clk 0:00:24]}  Re2 {[%clk 0:00:39]} 31. Nd3 {[%clk 0:00:20]}  b6 {[%clk 0:00:37]} 32. b4 {[%clk 0:00:19]}  Rf8 {[%clk 0:00:34]} 33. bxc5 {[%clk 0:00:19]}  bxc5 {[%clk 0:00:34]} 34. Nxc5 {[%clk 0:00:19]}  Bxc5 {[%clk 0:00:34]} 35. Rxc5+ {[%clk 0:00:19]}  Kb7 {[%clk 0:00:34]} 36. Rb5+ {[%clk 0:00:19]}  Kc6 {[%clk 0:00:34]} 37. Ra5 {[%clk 0:00:18]}  Rf7 {[%clk 0:00:33]} 38. Ra6+ {[%clk 0:00:18]}  Kd5 {[%clk 0:00:33]} 39. Rxh6 {[%clk 0:00:18]}  Kc4 {[%clk 0:00:32]} 40. Rg6 {[%clk 0:00:18]}  Rf5 {[%clk 0:00:32]} 41. Ra6 {[%clk 0:00:16]}  Re7 {[%clk 0:00:32]} 42. Kg2 {[%clk 0:00:16]}  Kb3 {[%clk 0:00:31]} 43. h4 {[%clk 0:00:11]}  gxh4 {[%clk 0:00:29]} 44. Bxh4 {[%clk 0:00:11]}  Rg7+ {[%clk 0:00:29]} 45. Bg3 {[%clk 0:00:11]}  Rf4 {[%clk 0:00:28]} 46. a5 {[%clk 0:00:11]}  Kb4 {[%clk 0:00:26]} 47. Rxa7 {[%clk 0:00:11]}  Rxf2+ {[%clk 0:00:17]} 48. Kxf2 {[%clk 0:00:09]}  Rxa7 {[%clk 0:00:18]} 49. Kf3 {[%clk 0:00:08]}  Kxa5 {[%clk 0:00:17]} 50. Bf2 {[%clk 0:00:08]}  Rf7+ {[%clk 0:00:16]} 51. Ke2 {[%clk 0:00:09]}  Kb5 {[%clk 0:00:17]} 52. Be3 {[%clk 0:00:08]}  Kc4 {[%clk 0:00:18]} 53. Bg5 {[%clk 0:00:08]}  Kd5 {[%clk 0:00:18]} 54. Be3 {[%clk 0:00:08]}  Ke4 {[%clk 0:00:19]} 55. Bc5 {[%clk 0:00:08]}  Rf3 {[%clk 0:00:19]} 56. Bf2 {[%clk 0:00:08]}  Rb3 {[%clk 0:00:19]} 57. Be1 {[%clk 0:00:06]}  Rb2+ {[%clk 0:00:19]} 58. Kd1 {[%clk 0:00:06]}  Kd3 {[%clk 0:00:18]} 59. Kc1 {[%clk 0:00:05]}  Rc2+ {[%clk 0:00:18]} 60. Kb1 {[%clk 0:00:05]}  Re2 {[%clk 0:00:17]} 61. Ba5 {[%clk 0:00:06]}  Kc4 {[%clk 0:00:16]} 62. Bb6 {[%clk 0:00:05]}  Kb3 {[%clk 0:00:17]} 63. Kc1 {[%clk 0:00:05]}  Rc2+ {[%clk 0:00:17]} 64. Kd1 {[%clk 0:00:06]}  Ra2 {[%clk 0:00:16]} 65. Be3 {[%clk 0:00:06]}  Kc3 {[%clk 0:00:16]} 66. Ke1 {[%clk 0:00:06]}  Kd3 {[%clk 0:00:16]} 67. Bg5 {[%clk 0:00:07]}  Rc2 {[%clk 0:00:15]} 68. Kf1 {[%clk 0:00:07]}  Ke4 {[%clk 0:00:15]} 69. Bh6 {[%clk 0:00:06]}  Kf3 {[%clk 0:00:15]} 70. Ke1 {[%clk 0:00:07]}  Re2+ {[%clk 0:00:15]} 71. Kd1 {[%clk 0:00:07]}  Rh2 {[%clk 0:00:15]} 72. Bd2 {[%clk 0:00:07]}  Ke4 {[%clk 0:00:14]} 73. Bg5 {[%clk 0:00:06]}  Kd3 {[%clk 0:00:14]} 74. Ke1 {[%clk 0:00:07]}  Rg2 {[%clk 0:00:13]} 75. Bf4 {[%clk 0:00:06]}  Ke4 {[%clk 0:00:13]} 76. Bc7 {[%clk 0:00:06]}  Ke3 {[%clk 0:00:12]} 77. Kf1 {[%clk 0:00:06]}  Rf2+ {[%clk 0:00:12]} 78. Kg1 {[%clk 0:00:07]}  Rc2 {[%clk 0:00:12]} 79. Bb6+ {[%clk 0:00:04]}  Kf3 {[%clk 0:00:12]} 80. Kh1 {[%clk 0:00:05]}  Rb2 {[%clk 0:00:10]} 81. Ba7 {[%clk 0:00:05]}  Ra2 {[%clk 0:00:10]} 82. Bc5 {[%clk 0:00:05]}  Kg3 {[%clk 0:00:10]} 83. Bd4 {[%clk 0:00:03]}  Rd2 {[%clk 0:00:09]} 84. Be5+ {[%clk 0:00:03]}  Kf3 {[%clk 0:00:08]} 85. Bc7 {[%clk 0:00:02]}  Rc2 {[%clk 0:00:08]} 86. Bb6 {[%clk 0:00:02]}  Rc6 {[%clk 0:00:07]} 87. Ba7 {[%clk 0:00:02]}  Rc2 {[%clk 0:00:06]} 88. Kg1 {[%clk 0:00:02]}  Rg2+ {[%clk 0:00:04]} 89. Kh1 {[%clk 0:00:02]}  Rg7 {[%clk 0:00:03]} 90. Bb6 {[%clk 0:00:02]}  Rg6 {[%clk 0:00:01]} 91. Bc5 {[%clk 0:00:03]}  Rh6+ {[%clk 0:00:01]} 92. Kg1 {[%clk 0:00:02]}  Rg6+ {[%clk 0:00:02]} 93. Kh1 {[%clk 0:00:01]}  Re6 {[%clk 0:00:03]} 94. Kg1 {[%clk 0:00:02]}  Re2 {[%clk 0:00:03]} 95. Kh1 {[%clk 0:00:02]}  Rc2 {[%clk 0:00:03]} 96. Bd6 {[%clk 0:00:01]}  Rd2 {[%clk 0:00:03]} 97. Bc5 {[%clk 0:00:01]}  Re2 {[%clk 0:00:04]} 98. Bd6 {[%clk 0:00:01]}  Kg4 {[%clk 0:00:03]} 99. Bc5 {[%clk 0:00:02]}  Kg3 {[%clk 0:00:03]} 1/2-1/2


[Site "https://www.chess.com"]

[Event "Titled Tuesday Blitz May 2 Late 2023"]
[White "Kavutskiy, Konstantin"]
[Black "Estremera Panos, Sergio"]
[WhiteFideId "2026384"]
[BlackFideId "2200864"]
[WhiteElo "2323"]
[BlackElo "2253"]
[Result "1-0"]
[Round "06"]
[TimeControl "180+2"]
[Date "2023.05.02"]
[WhiteClock "0:00:21"]
[BlackClock "0:01:12"]

1. d4 {[%clk 0:03:00]}  d5 {[%clk 0:02:58]} 2. c4 {[%clk 0:03:00]}  e6 {[%clk 0:02:55]} 3. Nf3 {[%clk 0:03:00]}  Nf6 {[%clk 0:02:49]} 4. e3 {[%clk 0:02:57]}  c5 {[%clk 0:02:42]} 5. cxd5 {[%clk 0:02:52]}  exd5 {[%clk 0:02:40]} 6. Nc3 {[%clk 0:02:51]}  Nc6 {[%clk 0:02:38]} 7. a3 {[%clk 0:02:51]}  cxd4 {[%clk 0:02:35]} 8. Nxd4 {[%clk 0:02:51]}  Bd6 {[%clk 0:02:32]} 9. Be2 {[%clk 0:02:49]}  O-O {[%clk 0:02:31]} 10. O-O {[%clk 0:02:46]}  Re8 {[%clk 0:02:29]} 11. Nxc6 {[%clk 0:02:39]}  bxc6 {[%clk 0:02:28]} 12. b4 {[%clk 0:02:36]}  Be5 {[%clk 0:02:21]} 13. Bb2 {[%clk 0:02:35]}  a5 {[%clk 0:02:21]} 14. b5 {[%clk 0:02:21]}  Rb8 {[%clk 0:02:19]} 15. Rb1 {[%clk 0:02:13]}  Qd6 {[%clk 0:02:12]} 16. h3 {[%clk 0:01:39]}  Bf5 {[%clk 0:02:11]} 17. Bd3 {[%clk 0:01:32]}  Bxd3 {[%clk 0:02:00]} 18. Qxd3 {[%clk 0:01:33]}  Bxc3 {[%clk 0:01:56]} 19. Bxc3 {[%clk 0:01:28]}  cxb5 {[%clk 0:01:56]} 20. Rxb5 {[%clk 0:01:17]}  Qxa3 {[%clk 0:01:55]} 21. Ra1 {[%clk 0:01:09]}  Qd6 {[%clk 0:01:50]} 22. Rbxa5 {[%clk 0:01:04]}  Rec8 {[%clk 0:01:46]} 23. Ra6 {[%clk 0:00:53]}  Rc6 {[%clk 0:01:33]} 24. Ra8 {[%clk 0:00:51]}  h6 {[%clk 0:01:27]} 25. Bxf6 {[%clk 0:00:34]}  gxf6 {[%clk 0:01:11]} 26. Rxb8+ {[%clk 0:00:28]}  Qxb8 {[%clk 0:01:12]} 27. Qxd5 {[%clk 0:00:25]}  Re6 {[%clk 0:01:12]} 28. Ra8 {[%clk 0:00:21]} 1-0


[Site "https://www.chess.com"]

[Event "Titled Tuesday Blitz May 2 Late 2023"]
[White "Adan Bermudez, Sergio"]
[Black "Wieczorek, Zbigniew"]
[WhiteFideId "2292726"]
[BlackFideId "1102001"]
[WhiteElo "2292"]
[BlackElo "2150"]
[Result "1-0"]
[Round "06"]
[TimeControl "180+2"]
[Date "2023.05.02"]
[WhiteClock "0:01:44"]
[BlackClock "0:00:04"]

1. c4 {[%clk 0:02:57]}  Nf6 {[%clk 0:02:57]} 2. Nc3 {[%clk 0:02:58]}  d6 {[%clk 0:02:57]} 3. e4 {[%clk 0:02:58]}  g6 {[%clk 0:02:57]} 4. g3 {[%clk 0:02:59]}  Bg7 {[%clk 0:02:58]} 5. Bg2 {[%clk 0:03:00]}  O-O {[%clk 0:02:58]} 6. Nge2 {[%clk 0:03:01]}  Nbd7 {[%clk 0:02:58]} 7. a3 {[%clk 0:03:01]}  Nc5 {[%clk 0:02:54]} 8. d3 {[%clk 0:03:01]}  a5 {[%clk 0:02:54]} 9. Rb1 {[%clk 0:03:00]}  a4 {[%clk 0:02:53]} 10. h3 {[%clk 0:02:57]}  e5 {[%clk 0:02:52]} 11. Be3 {[%clk 0:02:56]}  Nfd7 {[%clk 0:02:42]} 12. O-O {[%clk 0:02:55]}  c6 {[%clk 0:02:04]} 13. d4 {[%clk 0:02:54]}  exd4 {[%clk 0:01:59]} 14. Bxd4 {[%clk 0:02:53]}  Ne5 {[%clk 0:01:36]} 15. f4 {[%clk 0:02:14]}  Ned7 {[%clk 0:00:22]} 16. Bxg7 {[%clk 0:02:12]}  Kxg7 {[%clk 0:00:21]} 17. Qxd6 {[%clk 0:02:12]}  Qb6 {[%clk 0:00:20]} 18. Kh2 {[%clk 0:02:09]}  Re8 {[%clk 0:00:15]} 19. Qd4+ {[%clk 0:02:08]}  f6 {[%clk 0:00:13]} 20. e5 {[%clk 0:01:56]}  fxe5 {[%clk 0:00:11]} 21. fxe5 {[%clk 0:01:56]}  Ne6 {[%clk 0:00:11]} 22. Qh4 {[%clk 0:01:50]}  Qe3 {[%clk 0:00:07]} 23. Rf7+ {[%clk 0:01:44]}  Kxf7 {[%clk 0:00:04]} 24. Qxh7+ {[%clk 0:01:44]} 1-0


[Site "https://www.chess.com"]

[Event "Titled Tuesday Blitz May 2 Late 2023"]
[White "Quirke, Jeffrey"]
[Black "Stork, Oliver"]
[WhiteFideId "2013029"]
[BlackFideId "12955728"]
[WhiteElo "2007"]
[BlackElo "2239"]
[Result "0-1"]
[Round "06"]
[TimeControl "180+2"]
[Date "2023.05.02"]
[WhiteClock "0:00:10"]
[BlackClock "0:01:44"]

1. e4 {[%clk 0:03:00]}  c6 {[%clk 0:02:59]} 2. d4 {[%clk 0:03:00]}  d5 {[%clk 0:02:59]} 3. exd5 {[%clk 0:03:00]}  cxd5 {[%clk 0:03:00]} 4. c3 {[%clk 0:02:59]}  Nc6 {[%clk 0:02:55]} 5. Nf3 {[%clk 0:02:57]}  Qc7 {[%clk 0:02:55]} 6. Be3 {[%clk 0:02:55]}  Bg4 {[%clk 0:02:54]} 7. Nbd2 {[%clk 0:02:54]}  Nf6 {[%clk 0:02:54]} 8. h3 {[%clk 0:02:51]}  Bh5 {[%clk 0:02:53]} 9. g4 {[%clk 0:02:45]}  Bg6 {[%clk 0:02:53]} 10. Nh4 {[%clk 0:02:46]}  e6 {[%clk 0:02:50]} 11. Nxg6 {[%clk 0:02:45]}  hxg6 {[%clk 0:02:51]} 12. Qf3 {[%clk 0:02:22]}  Qb6 {[%clk 0:02:40]} 13. O-O-O {[%clk 0:02:07]}  Rc8 {[%clk 0:02:28]} 14. Kb1 {[%clk 0:02:07]}  a5 {[%clk 0:02:22]} 15. Ka1 {[%clk 0:01:18]}  a4 {[%clk 0:02:19]} 16. h4 {[%clk 0:01:13]}  Na5 {[%clk 0:02:15]} 17. h5 {[%clk 0:01:03]}  gxh5 {[%clk 0:02:10]} 18. gxh5 {[%clk 0:01:02]}  a3 {[%clk 0:02:10]} 19. b3 {[%clk 0:00:50]}  Rxc3 {[%clk 0:02:09]} 20. h6 {[%clk 0:00:46]}  Qc6 {[%clk 0:01:53]} 21. Nb1 {[%clk 0:00:25]}  Rc2 {[%clk 0:01:46]} 22. hxg7 {[%clk 0:00:16]}  Rxa2+ {[%clk 0:01:44]} 23. Kxa2 {[%clk 0:00:12]}  Qc2+ {[%clk 0:01:45]} 24. Ka1 {[%clk 0:00:10]}  Nxb3# {[%clk 0:01:44]} 0-1


[Site "https://www.chess.com"]

[Event "Titled Tuesday Blitz May 2 Late 2023"]
[White "Hnydiuk, Aleksander"]
[Black "Pasti, Aron"]
[WhiteFideId "1109057"]
[BlackFideId "785857"]
[WhiteElo "2374"]
[BlackElo "2173"]
[Result "1-0"]
[Round "06"]
[TimeControl "180+2"]
[Date "2023.05.02"]
[WhiteClock "0:01:05"]
[BlackClock "0:00:44"]

1. e4 {[%clk 0:03:00]}  c5 {[%clk 0:02:22]} 2. Nf3 {[%clk 0:02:59]}  e6 {[%clk 0:02:20]} 3. d4 {[%clk 0:02:59]}  cxd4 {[%clk 0:02:20]} 4. Nxd4 {[%clk 0:03:00]}  Nc6 {[%clk 0:02:20]} 5. Nc3 {[%clk 0:03:01]}  Qc7 {[%clk 0:02:21]} 6. a3 {[%clk 0:02:55]}  a6 {[%clk 0:02:19]} 7. Be3 {[%clk 0:02:55]}  b5 {[%clk 0:02:20]} 8. Bd3 {[%clk 0:02:50]}  Bb7 {[%clk 0:02:19]} 9. O-O {[%clk 0:02:50]}  Nf6 {[%clk 0:02:18]} 10. Kh1 {[%clk 0:02:48]}  Nxd4 {[%clk 0:02:18]} 11. Bxd4 {[%clk 0:02:48]}  Bc5 {[%clk 0:02:18]} 12. Bxc5 {[%clk 0:02:40]}  Qxc5 {[%clk 0:02:19]} 13. Qe2 {[%clk 0:02:38]}  d5 {[%clk 0:02:17]} 14. e5 {[%clk 0:02:26]}  Nd7 {[%clk 0:02:17]} 15. f4 {[%clk 0:02:26]}  O-O {[%clk 0:02:17]} 16. Rf3 {[%clk 0:02:20]}  g6 {[%clk 0:02:17]} 17. Raf1 {[%clk 0:02:06]}  Qe7 {[%clk 0:02:13]} 18. Rg3 {[%clk 0:01:58]}  Nc5 {[%clk 0:02:12]} 19. Qh5 {[%clk 0:01:39]}  d4 {[%clk 0:02:04]} 20. Ne2 {[%clk 0:01:32]}  Kg7 {[%clk 0:01:26]} 21. f5 {[%clk 0:01:28]}  exf5 {[%clk 0:01:25]} 22. Qxf5 {[%clk 0:01:23]}  Nxd3 {[%clk 0:01:23]} 23. Qf6+ {[%clk 0:01:23]}  Qxf6 {[%clk 0:01:23]} 24. exf6+ {[%clk 0:01:24]}  Kg8 {[%clk 0:01:22]} 25. Rxd3 {[%clk 0:01:24]}  Rfd8 {[%clk 0:01:13]} 26. Rxd4 {[%clk 0:01:19]}  Kf8 {[%clk 0:01:09]} 27. Kg1 {[%clk 0:01:14]}  Ke8 {[%clk 0:01:06]} 28. Re1 {[%clk 0:01:11]}  Rxd4 {[%clk 0:00:54]} 29. Nxd4+ {[%clk 0:01:12]}  Kf8 {[%clk 0:00:54]} 30. Re7 {[%clk 0:01:11]}  Bc8 {[%clk 0:00:54]} 31. Nf3 {[%clk 0:01:06]}  Be6 {[%clk 0:00:43]} 32. Ng5 {[%clk 0:01:06]}  Bd5 {[%clk 0:00:43]} 33. Nxh7+ {[%clk 0:01:06]}  Kg8 {[%clk 0:00:44]} 34. Ng5 {[%clk 0:01:05]} 1-0


[Site "https://www.chess.com"]

[Event "Titled Tuesday Blitz May 2 Late 2023"]
[White "Ramirez Vido, Robert Yorisan"]
[Black "Spitzl, Vinzent"]
[WhiteFideId "3513823"]
[BlackFideId "12901253"]
[WhiteElo "2015"]
[BlackElo "2225"]
[Result "0-1"]
[Round "06"]
[TimeControl "180+2"]
[Date "2023.05.02"]
[WhiteClock "0:00:05"]
[BlackClock "0:00:57"]

1. f4 {[%clk 0:03:00]}  Nf6 {[%clk 0:02:58]} 2. Nf3 {[%clk 0:03:01]}  d5 {[%clk 0:02:59]} 3. g3 {[%clk 0:03:01]}  e6 {[%clk 0:02:59]} 4. Bg2 {[%clk 0:03:02]}  Be7 {[%clk 0:03:00]} 5. d3 {[%clk 0:03:03]}  O-O {[%clk 0:03:00]} 6. O-O {[%clk 0:03:04]}  b6 {[%clk 0:02:59]} 7. e4 {[%clk 0:03:03]}  dxe4 {[%clk 0:02:59]} 8. dxe4 {[%clk 0:03:03]}  Qxd1 {[%clk 0:02:59]} 9. Rxd1 {[%clk 0:03:04]}  Bb7 {[%clk 0:03:00]} 10. e5 {[%clk 0:03:01]}  Nd5 {[%clk 0:02:58]} 11. c3 {[%clk 0:02:48]}  Nc6 {[%clk 0:02:54]} 12. Nbd2 {[%clk 0:02:46]}  Ne3 {[%clk 0:02:51]} 13. Rf1 {[%clk 0:02:37]}  Nxf1 {[%clk 0:02:50]} 14. Nxf1 {[%clk 0:02:38]}  Bc5+ {[%clk 0:02:48]} 15. Be3 {[%clk 0:02:38]}  Bxe3+ {[%clk 0:02:47]} 16. Nxe3 {[%clk 0:02:39]}  Rfd8 {[%clk 0:02:45]} 17. Kf2 {[%clk 0:02:30]}  Ne7 {[%clk 0:02:44]} 18. Ke2 {[%clk 0:02:18]}  a6 {[%clk 0:02:40]} 19. g4 {[%clk 0:01:58]}  c5 {[%clk 0:02:35]} 20. Nc4 {[%clk 0:01:30]}  b5 {[%clk 0:02:25]} 21. Nd6 {[%clk 0:01:28]}  Bc6 {[%clk 0:02:23]} 22. Rg1 {[%clk 0:01:08]}  Nd5 {[%clk 0:02:17]} 23. f5 {[%clk 0:00:57]}  Nf4+ {[%clk 0:02:12]} 24. Ke3 {[%clk 0:00:54]}  Nxg2+ {[%clk 0:02:11]} 25. Rxg2 {[%clk 0:00:55]}  Bxf3 {[%clk 0:02:02]} 26. Kxf3 {[%clk 0:00:54]}  exf5 {[%clk 0:02:02]} 27. gxf5 {[%clk 0:00:51]}  f6 {[%clk 0:01:59]} 28. Ke4 {[%clk 0:00:38]}  fxe5 {[%clk 0:01:47]} 29. Kxe5 {[%clk 0:00:39]}  Ra7 {[%clk 0:01:45]} 30. f6 {[%clk 0:00:33]}  Rad7 {[%clk 0:01:33]} 31. Rxg7+ {[%clk 0:00:22]}  Rxg7 {[%clk 0:01:32]} 32. fxg7 {[%clk 0:00:22]}  Kxg7 {[%clk 0:01:32]} 33. Kd5 {[%clk 0:00:22]}  c4 {[%clk 0:01:26]} 34. Kc6 {[%clk 0:00:21]}  Kf6 {[%clk 0:01:21]} 35. Ne4+ {[%clk 0:00:19]}  Kf5 {[%clk 0:01:16]} 36. Nd6+ {[%clk 0:00:17]}  Kg4 {[%clk 0:01:12]} 37. Ne4 {[%clk 0:00:12]}  h6 {[%clk 0:01:07]} 38. Kb6 {[%clk 0:00:10]}  Kh3 {[%clk 0:01:03]} 39. Kxa6 {[%clk 0:00:09]}  Kxh2 {[%clk 0:01:02]} 40. Kxb5 {[%clk 0:00:10]}  Kg2 {[%clk 0:01:00]} 41. Kxc4 {[%clk 0:00:10]}  h5 {[%clk 0:00:59]} 42. a4 {[%clk 0:00:05]}  h4 {[%clk 0:00:59]} 43. a5 {[%clk 0:00:05]}  h3 {[%clk 0:00:57]} 0-1


[Site "https://www.chess.com"]

[Event "Titled Tuesday Blitz May 2 Late 2023"]
[White "Martic, Ivan"]
[Black "Hoffmann, Asa"]
[WhiteFideId "929301"]
[BlackFideId "2001470"]
[WhiteElo "2360"]
[BlackElo "2117"]
[Result "0-1"]
[Round "06"]
[TimeControl "180+2"]
[Date "2023.05.02"]
[WhiteClock "0:00:11"]
[BlackClock "0:00:32"]

1. Nf3 {[%clk 0:03:00]}  d6 {[%clk 0:02:59]} 2. d4 {[%clk 0:02:59]}  Bg4 {[%clk 0:02:56]} 3. e4 {[%clk 0:02:54]}  Nf6 {[%clk 0:02:55]} 4. Nbd2 {[%clk 0:02:52]}  c6 {[%clk 0:02:55]} 5. Be2 {[%clk 0:02:51]}  e6 {[%clk 0:02:55]} 6. O-O {[%clk 0:02:50]}  d5 {[%clk 0:02:55]} 7. e5 {[%clk 0:02:50]}  Nfd7 {[%clk 0:02:55]} 8. c4 {[%clk 0:02:46]}  dxc4 {[%clk 0:02:51]} 9. Nxc4 {[%clk 0:02:44]}  Nb6 {[%clk 0:02:51]} 10. Ne3 {[%clk 0:02:43]}  Bh5 {[%clk 0:02:50]} 11. h3 {[%clk 0:02:36]}  Be7 {[%clk 0:02:49]} 12. Ng4 {[%clk 0:02:34]}  N8d7 {[%clk 0:02:43]} 13. a4 {[%clk 0:02:26]}  c5 {[%clk 0:02:34]} 14. a5 {[%clk 0:02:24]}  Nd5 {[%clk 0:02:34]} 15. a6 {[%clk 0:02:23]}  b6 {[%clk 0:02:33]} 16. dxc5 {[%clk 0:02:21]}  Bxc5 {[%clk 0:02:29]} 17. Bg5 {[%clk 0:02:09]}  Be7 {[%clk 0:02:26]} 18. Bxe7 {[%clk 0:02:08]}  Qxe7 {[%clk 0:02:26]} 19. Nd4 {[%clk 0:02:02]}  O-O {[%clk 0:02:16]} 20. Nh6+ {[%clk 0:01:54]}  gxh6 {[%clk 0:02:13]} 21. Bxh5 {[%clk 0:01:48]}  Nxe5 {[%clk 0:02:12]} 22. Re1 {[%clk 0:01:41]}  Ng6 {[%clk 0:02:05]} 23. Bf3 {[%clk 0:01:41]}  Qg5 {[%clk 0:02:02]} 24. Nc6 {[%clk 0:01:30]}  Rfc8 {[%clk 0:01:56]} 25. Rc1 {[%clk 0:01:25]}  Rc7 {[%clk 0:01:54]} 26. Rc3 {[%clk 0:01:12]}  Nxc3 {[%clk 0:01:49]} 27. bxc3 {[%clk 0:01:09]}  Rac8 {[%clk 0:01:48]} 28. Qd6 {[%clk 0:01:06]}  Nh4 {[%clk 0:01:35]} 29. Be4 {[%clk 0:00:56]}  Nxg2 {[%clk 0:01:26]} 30. Kf1 {[%clk 0:00:48]}  Nxe1 {[%clk 0:01:22]} 31. Kxe1 {[%clk 0:00:45]}  Qc1+ {[%clk 0:01:02]} 32. Ke2 {[%clk 0:00:44]}  Qxc3 {[%clk 0:01:02]} 33. Ne7+ {[%clk 0:00:39]}  Rxe7 {[%clk 0:00:59]} 34. Qxe7 {[%clk 0:00:40]}  Qc7 {[%clk 0:00:54]} 35. Qf6 {[%clk 0:00:36]}  Qc3 {[%clk 0:00:42]} 36. Qe7 {[%clk 0:00:27]}  Qe5 {[%clk 0:00:38]} 37. f3 {[%clk 0:00:19]}  f5 {[%clk 0:00:34]} 38. Qd7 {[%clk 0:00:15]}  Rf8 {[%clk 0:00:33]} 39. Qxa7 {[%clk 0:00:11]}  fxe4 {[%clk 0:00:33]} 40. f4 {[%clk 0:00:11]}  Qxf4 {[%clk 0:00:32]} 0-1


[Site "https://www.chess.com"]

[Event "Titled Tuesday Blitz May 2 Late 2023"]
[White "Olsson, William"]
[Black "Kujawski, Adam"]
[WhiteFideId "1741721"]
[BlackFideId "1100920"]
[WhiteElo "2197"]
[BlackElo "2054"]
[Result "1-0"]
[Round "06"]
[TimeControl "180+2"]
[Date "2023.05.02"]
[WhiteClock "0:00:12"]
[BlackClock "0:00:11"]

1. c4 {[%clk 0:03:00]}  e5 {[%clk 0:02:57]} 2. g3 {[%clk 0:03:00]}  Nc6 {[%clk 0:02:55]} 3. Bg2 {[%clk 0:03:00]}  d6 {[%clk 0:02:55]} 4. Nc3 {[%clk 0:03:01]}  Be6 {[%clk 0:02:55]} 5. Nd5 {[%clk 0:03:00]}  Nce7 {[%clk 0:02:50]} 6. e4 {[%clk 0:02:57]}  c6 {[%clk 0:02:47]} 7. Ne3 {[%clk 0:02:56]}  Ng6 {[%clk 0:02:42]} 8. Ne2 {[%clk 0:02:55]}  h5 {[%clk 0:02:29]} 9. h4 {[%clk 0:02:53]}  Nf6 {[%clk 0:02:27]} 10. d4 {[%clk 0:02:52]}  Be7 {[%clk 0:02:17]} 11. Nf5 {[%clk 0:02:30]}  O-O {[%clk 0:02:01]} 12. d5 {[%clk 0:02:26]}  cxd5 {[%clk 0:01:43]} 13. cxd5 {[%clk 0:02:27]}  Bd7 {[%clk 0:01:40]} 14. Nc3 {[%clk 0:02:26]}  a6 {[%clk 0:01:24]} 15. Bg5 {[%clk 0:02:25]}  b5 {[%clk 0:01:12]} 16. Bxf6 {[%clk 0:02:12]}  Bxf6 {[%clk 0:01:06]} 17. Qxh5 {[%clk 0:02:12]}  b4 {[%clk 0:01:03]} 18. Ne2 {[%clk 0:02:10]}  Bb5 {[%clk 0:00:55]} 19. Qf3 {[%clk 0:01:06]}  Rc8 {[%clk 0:00:41]} 20. h5 {[%clk 0:00:53]}  Rc2 {[%clk 0:00:38]} 21. Bf1 {[%clk 0:00:36]}  Ne7 {[%clk 0:00:37]} 22. Ne3 {[%clk 0:00:36]}  Rxb2 {[%clk 0:00:28]} 23. Nc1 {[%clk 0:00:30]}  Bxf1 {[%clk 0:00:19]} 24. Kxf1 {[%clk 0:00:30]}  Bg5 {[%clk 0:00:16]} 25. Nd3 {[%clk 0:00:22]}  Rd2 {[%clk 0:00:16]} 26. Nc4 {[%clk 0:00:20]}  Rc2 {[%clk 0:00:14]} 27. Ne3 {[%clk 0:00:16]}  Bxe3 {[%clk 0:00:14]} 28. Qxe3 {[%clk 0:00:17]}  Qa5 {[%clk 0:00:11]} 29. h6 {[%clk 0:00:16]}  Ng6 {[%clk 0:00:10]} 30. hxg7 {[%clk 0:00:16]}  Kxg7 {[%clk 0:00:11]} 31. Qh6+ {[%clk 0:00:16]}  Kf6 {[%clk 0:00:11]} 32. Kg2 {[%clk 0:00:15]}  Rd2 {[%clk 0:00:10]} 33. Qxd2 {[%clk 0:00:14]}  Rc8 {[%clk 0:00:10]} 34. Qxb4 {[%clk 0:00:14]}  Qc7 {[%clk 0:00:09]} 35. Rac1 {[%clk 0:00:13]}  Qd7 {[%clk 0:00:10]} 36. Rxc8 {[%clk 0:00:12]}  Qxc8 {[%clk 0:00:10]} 37. Rc1 {[%clk 0:00:12]}  Kg7 {[%clk 0:00:11]} 38. Rxc8 {[%clk 0:00:12]} 1-0


[Site "https://www.chess.com"]